Cogmind - Beta 13 @@@ ROGUE MODE // 2024.06.05 @ 16:12:31 Player: Kat Result: Destroyed by YI-UF0 with YI-UF0's Doublenader Performance ------------- Evolutions (0) 0 Regions Visited (2) 400 Robots Destroyed (29) 145 Value Destroyed (653) 653 Prototype IDs (3) 60 Alien Tech Used (0) 0 Bonus (0) 0 TOTAL SCORE: 1258 Bonus ------- None Cogmind --------- Core Integrity 0/250 Matter 290/300 Energy 47/100 System Corruption 2% Temperature Warm (119) Movement Core (250) Ox4 Location -10/Mines Parts ------- > --- POWER (1) -------- (None) > --- PROPULSION (2) --- (None) > --- UTILITY (2) ------ Medium Storage Unit > --- WEAPON (2) ------- Grenade Launcher > --- INVENTORY (10) --- Ion Engine Aluminum Leg Aluminum Leg Small Storage Unit Weight Redist. System Sensor Array Improved Terrain Scanner Improved Medium Laser Improved Medium Laser Peak State ------------ > --- POWER ------------ Light Ion Engine > --- PROPULSION ------- Aluminum Leg Aluminum Leg > --- UTILITY ---------- Medium Storage Unit Sensor Array > --- WEAPON ----------- Improved Medium Laser Improved Medium Laser > --- INVENTORY -------- Ion Engine Wheel Wheel Small Storage Unit Weight Redist. System Improved Terrain Scanner Seismic Detector Assault Rifle Assault Rifle Assault Rifle [Rating: 12] Favorites ----------- Power Light Ion Engine Engine Light Ion Engine Propulsion Wheel Leg Aluminum Leg Wheel Wheel Utility Medium Storage Unit Device Heat Sink Storage Medium Storage Unit Weapon Advanced Beam Cannon Energy Gun Improved Medium Laser Energy Cannon Advanced Beam Cannon Ballistic Gun Assault Rifle Launcher Grenade Launcher Build | -11 -10 -10 ------- Run | Yrd Mat Min Slots Evolved . | . . . Power . | . . . Propulsion . | . . . Utility . | . . . Weapon . | . . . Parts Attached 37 | 7 27 3 Power 5 | 1 4 . Engine 5 | 1 4 . Core . | . . . Reactor . | . . . Propulsion 12 | 2 10 . Treads . | . . . Leg 6 | 2 4 . Wheel 6 | . 6 . Hover . | . . . Flight . | . . . Utility 5 | 2 3 . Device 3 | 1 2 . Storage 2 | 1 1 . Processor . | . . . Hackware . | . . . Protection . | . . . Artifact . | . . . Weapon 15 | 2 10 3 Energy Gun 4 | . 4 . Energy Cannon 7 | . 6 1 Ballistic Gun 2 | 2 . . Ballistic Cannon . | . . . Launcher 2 | . . 2 Special Weapon . | . . . Impact Weapon . | . . . Slashing Weapon . | . . . Piercing Weapon . | . . . Special Melee Weapon . | . . . Unidentified Prototypes 3 | . 3 . Parts Lost 6 | . . 6 Power 1 | . . 1 Propulsion 2 | . . 2 Utility 1 | . . 1 Weapon 2 | . . 2 Highest Loss Streak 6 | . . 6 To Critical Strikes . | . . . Average Slot Usage (%) 98 | . 98 96 Engine 13 | . 13 12 Leg 10 | . 12 . Wheel 17 | . 15 26 Device 13 | . 13 13 Storage 14 | . 14 14 Energy Cannon 22 | . 22 22 Ballistic Gun 3 | . 3 . Naked Turns . | . . . Heaviest Build 22 | 13 22 22 Greatest Support 20 | 20 20 20 Greatest Overweight (x) 2 | 2 1 1 Average Overweight (x) . | . . 1 Largest Inventory Capacity 10 | 8 10 10 Average Capacity 9 | 7 9 10 Most Carried 10 | 5 10 10 Average Carried 9 | 2 9 9 Final Capacity 10 | 8 10 10 Final Carried 10 | 5 10 9 Class Distribution -------------------- 78% | Mutant 21% | Scavenger-Mutant Dominant Class ---------------- Mutant | -10/Materials Mutant | -10/Mines Resources | -11 -10 -10 ----------- Run | Yrd Mat Min Matter Collected 696 | 324 335 37 Remotely . | . . . Salvage Created 1045 | 169 876 . Parts 63 | 10 53 . Haulers Intercepted 1 | . 1 . Recyclers Shooed 1 | 1 . . Parts Field Recycled . | . . . Retrieved Matter . | . . . Parts Self-Destructed . | . . . Prevented . | . . . Kills | -11 -10 -10 ------- Run | Yrd Mat Min Combat Hostiles Destroyed 17 | . 17 . Guns 2 | . 2 . Cannons 15 | . 15 . Classes Destroyed 8 | 2 6 . Builder 1 | . 1 . Tunneler 4 | 4 . . Hauler 1 | . 1 . Recycler 2 | 1 1 . Operator 1 | . 1 . Watcher 3 | . 3 . Swarmer 3 | . 3 . Grunt 14 | . 14 . Best Kill Streak 4 | 3 4 . Combat Bots Only 3 | . 3 . Max Kills in Single Turn 2 | 1 2 . Gunslinging . | . . . Exploded . | . . . Melee . | . . . Uniques/NPCs Destroyed . | . . . Combat | -11 -10 -10 -------- Run | Yrd Mat Min Hostile Shots Fired 56 | . 38 18 Missed 14 | . 8 6 Damage Taken 827 | . 349 478 Core 271 | . 44 227 Absorbed by Shields . | . . . Regen/Repaired (Parts) 25 | . 25 . Core Remaining (%) 100 | 100 . . Volleys Fired 62 | 9 47 6 Largest 2 | 2 2 2 Hottest 136 | 40 136 136 Shots Fired 122 | 18 95 9 Gun 44 | 18 26 . Cannon 78 | . 69 9 Launcher . | . . . Special . | . . . Kinetic 32 | 18 14 . Thermal 90 | . 81 9 Explosive . | . . . Electromagnetic . | . . . Robot Hit Streak 7 | 6 7 3 Robot Miss Streak 5 | 1 5 1 Penetration Max . | . . . Secondary Targets 1 | . 1 . Max Gunslinging Chain 1 | . 1 . Shots Hit Robots 68 | 13 49 6 Core Hits 35 | 6 27 2 Critical Kills . | . . . Critical Parts Destroyed . | . . . Critical Strikes 1 | . 1 . Burn 1 | . 1 . Melee Attacks . | . . . Impact . | . . . Slashing . | . . . Piercing . | . . . Sneak Attacks . | . . . Combat Hostiles . | . . . Follow-up Attacks . | . . . Damage Inflicted 1268 | 165 980 123 Guns 352 | 165 187 . Cannons 916 | . 793 123 Explosions . | . . . Melee . | . . . Ramming . | . . . Kinetic 249 | 165 84 . Thermal 1019 | . 896 123 Explosive . | . . . Electromagnetic . | . . . Impact . | . . . Slashing . | . . . Piercing . | . . . Highest Corruption 2 | . 2 2 Average Corruption 2 | . 2 2 Corruption Purged . | . . . Corruption Blocked . | . . . Effects 21 | . 18 3 Message Errors 7 | . 6 1 Matter Fused 5 | . 3 2 Heat Flow Errors 3 | . 3 . Energy Discharges 3 | . 3 . Data Loss (minor) 2 | . 2 . Misfires 1 | . 1 . Overload Shots . | . . . Overflow Damage 12 | . 12 . Projectiles 12 | . 12 . Explosions . | . . . Melee . | . . . Knockbacks . | . . . Impact . | . . . Kinetic . | . . . Secondary . | . . . Self-Inflicted Damage . | . . . Shots . | . . . Rammed . | . . . Targets Rammed . | . . . Kicked . | . . . Crushed . | . . . Highest Temperature 375 | . 375 144 Average Temperature 109 | . 111 86 Received Heat Transfer 180 | . 171 9 Siege Activations . | . . . Robots Corrupted . | . . . Combat Hostiles . | . . . Parts Fried . | . . . Impact Corruptions . | . . . Robots Melted . | . . . Combat Hostiles . | . . . Parts Melted 4 | . 4 . Heat Transferred 1961 | . 1739 222 Parts Sabotaged . | . . . Parts Stolen . | . . . Parts Stripped . | . . . Power Chain Reactions . | . . . Alert | -11 -10 -10 ------- Run | Yrd Mat Min Peak Influence 286 | 25 286 83 Initial 53 | . 16 53 Average 123 | 9 144 66 Maximum Alert Level 1 | . 1 . Low Security (%) 84 | 100 79 100 Level 1 15 | . 20 . Level 2 . | . . . Level 3 . | . . . Level 4 . | . . . Level 5 . | . . . High Security . | . . . Max Security . | . . . Squads Dispatched 4 | . 4 . Investigation 3 | . 3 . Extermination . | . . . Reinforcement 1 | . 1 . Assault . | . . . Garrison . | . . . Intercept . | . . . Searches Triggered . | . . . Construction Impeded . | . . . Haulers Reinforced . | . . . Active Scanning Responses . | . . . Cargo Convoy Interrupts . | . . . Stealth | -11 -10 -10 --------- Run | Yrd Mat Min Distress Signals 1 | . 1 . Communications Jammed . | . . . Distress Signals . | . . . Times Spotted 28 | . 26 2 Peak Tracking Total 3 | . 3 2 Tactical Retreats 1 | . . 1 Traps | -11 -10 -10 ------- Run | Yrd Mat Min Traps Triggered 5 | . 5 . Indirectly . | . . . Trap Hack Attempts . | . . . Triggered . | . . . Disarmed . | . . . Reprogrammed . | . . . Reused . | . . . Traps Extracted . | . . . Installed . | . . . Triggered . | . . . Machines | -11 -10 -10 ---------- Run | Yrd Mat Min Machines Disabled 1 | . 1 . Max in Single Turn 1 | . 1 . Machines Repaired . | . . . Machines Dismantled . | . . . Machines Sabotaged . | . . . Overloaded Fab Kills . | . . . Hacking | -11 -10 -10 --------- Run | Yrd Mat Min Machines Accessed 8 | . 8 . Terminals 6 | . 6 . Fabricators . | . . . Repair Stations 1 | . 1 . Recycling Units 1 | . 1 . Scanalyzers . | . . . Garrison Access . | . . . Total Hacks 26 | . 26 . Successful 12 | . 12 . Failed 14 | . 14 . Catastrophic 3 | . 3 . Database Lockouts . | . . . Manual 20 | . 20 . Terminals 20 | . 20 . Fabricators . | . . . Repair Stations 4 | . 4 . Recycling Units 2 | . 2 . Scanalyzers . | . . . Garrison Access . | . . . Terminal Hacks 3 | . 3 . Branch Access Points 1 | . 1 . Emergency Access Points 1 | . 1 . Terminal Index 1 | . 1 . Fabricator Hacks . | . . . Repair Station Hacks 3 | . 3 . Scan Component 2 | . 2 . Repair 1 | . 1 . Recycling Unit Hacks 1 | . 1 . Retrieve Components 1 | . 1 . Scanalyzer . | . . . Garrison Access Hacks . | . . . Unauthorized Hacks 5 | . 5 . Terminals 5 | . 5 . Botnet 3 | . 3 . Operators 2 | . 2 . Fabricators . | . . . Repair Stations . | . . . Recycling Units . | . . . Scanalyzers . | . . . Garrison Access . | . . . Data Cores Recovered . | . . . Used . | . . . Hacking Detections 8 | . 8 . Full Trace Events 5 | . 5 . Feedback Events . | . . . Feedback Blocked . | . . . Robot Schematics Acquired . | . . . Robots Built . | . . . Authchips . | . . . Time . | . . . Total Robot Build Rating . | . . . Part Schematics Acquired . | . . . Parts Built . | . . . Authchips . | . . . Time . | . . . Total Part Build Rating . | . . . Parts Repaired 1 | . 1 . Time 26 | . 26 . Parts Recycled . | . . . Recycled Matter . | . . . Retrieved Matter . | . . . Retrieved Components 6 | . 6 . Parts Scanalyzed . | . . . Part Schematics Acquired . | . . . Parts Damaged . | . . . Bothacking | -11 -10 -10 ------------ Run | Yrd Mat Min Used RIF Installer . | . . . Robots Hacked . | . . . Non-combat . | . . . Combat . | . . . Robot Hacks Applied . | . . . Relay Couplers Released . | . . . Fabnet Peak Effective % . | . . . Robots Rewired . | . . . Allies Hacked . | . . . Hacks Repelled . | . . . Allies | -11 -10 -10 -------- Run | Yrd Mat Min Total Allies . | . . . Largest Group . | . . . Highest-Rated Group . | . . . Highest-Rated Ally . | . . . Total Orders . | . . . Ally Attacks . | . . . Total Damage . | . . . Kills . | . . . Allies Corrupted . | . . . Allies Melted . | . . . Intel | -11 -10 -10 ------- Run | Yrd Mat Min Robot Analysis Total . | . . . Derelict Logs Recovered . | . . . Drone Launches . | . . . Drone Recoveries . | . . . Exploration | -11 -10 -10 ------------- Run | Yrd Mat Min Turns Passed 1631 | 123 1277 231 Spaces Moved 1050 | 67 863 120 Core 19 | 19 . . Treads . | . . . Legs 294 | 48 246 . Wheels 737 | . 617 120 Hover . | . . . Flight . | . . . Fastest Speed 50 | 50 80 95 Average Speed 110 | 116 111 95 Slowest Speed 190 | 150 190 95 Overloaded Moves . | . . . Propulsion Burnouts . | . . . Robots Hopped . | . . . Cave-ins Triggered . | . . . Exploration Rate (%) 41 | 3 97 24 Regions Visited 2 Branch Regions 1 Pre-discovered Areas . | . . . Known Exits Taken 1 | . 1 . Unknown Exits Taken 1 | 1 . . Scrap Searched . | . . . Spaces Dug . | . . . Terrain Destroyed . | . . . Melee . | . . . Projectile . | . . . AOE . | . . . Terrain Rammed . | . . . Walls Destroyed . | . . . Machines Disabled . | . . . Actions | -11 -10 -10 --------- Run | Yrd Mat Min Total 1403 | 94 1082 227 Wait 210 | . 114 96 Move 1048 | 66 862 120 Hop . | . . . Pick Up 21 | 12 8 1 Fast Attach 19 | . 19 . Attach 8 | 7 . 1 Detach 6 | . 6 . Swap 10 | . 8 2 Drop 19 | . 18 1 Fire 62 | 9 47 6 Melee . | . . . Ram . | . . . Kick . | . . . Crush . | . . . Escape Stasis . | . . . Rewire . | . . . Trap . | . . . Miscellaneous . | . . . Route ------- -11/Scrapyard -10/Materials (discovered 5 exits: [*Mat x3] / *Min x2) -10/Mines (discovered 1 exit: [*Mat]) History --------- Turn | Location | Event 13 | -11/Scrapyard | Discovered new exit (range 15) 124 | -11/Scrapyard | Entered Materials 330 | -10/Materials | Build established: Mutant 525 | -10/Materials | Discovered new exit (range 14) 636 | -10/Materials | Build established: Scavenger-Mutant 663 | -10/Materials | Discovered new exit (range 8) 699 | -10/Materials | Discovered new exit (range 5) 735 | -10/Materials | Identified exit to Mines 974 | -10/Materials | Build established: Mutant 1108 | -10/Materials | Repaired Wheel 1125 | -10/Materials | Discovered new exit (range 15) 1332 | -10/Materials | Discovered new exit (range 16) 1401 | -10/Materials | Entered Mines 1415 | -10/Mines | YI-UF0 nonchalantly dropped a Grenade Launcher on the ground 1501 | -10/Mines | Joined a pair of Derelicts in attacking an 0b10 outpost 1607 | -10/Mines | Discovered new exit (range 5) 1623 | -10/Mines | Core integrity fell below 50% 1627 | -10/Mines | Core integrity fell below 20% 1632 | -10/Mines | Destroyed by YI-UF0 with YI-UF0's Doublenader Last Messages --------------- strike. Need some help?" 01501_ Y-45 Defender destroyed. 01510_ System corrupted: Matter fused (-10). 01519_ Acquired 37 matter. 01520_ R-06 Scavenger collects Imp. Ion Engine. 01523_ R-06 Scavenger collects Hvy. Assault Rifle. 01607_ EXIT=FOUND 01608_ K-01 Serf collects debris. 01616_ YI-UF0: "BOOM!" 01616_ K-01 Serf destroyed. 01618_ YI-UF0 mumbles something. 01618_ Lgt. Ion Engine destroyed. 01622_ Wheel destroyed. 01624_ Adv. Beam Cannon destroyed. 01624_ Wheel destroyed. 01626_ Heat Sink destroyed. 01628_ The unstable cave ceiling collapses. 01630_ Adv. Beam Cannon destroyed. 01631_ The unstable cave ceiling collapses. 01632_ U-05 Engineer lays Concrete. Map ----- +----------------------------------------------------+ | ?????????????????????????????????????????????????? | | ?????????????????????????????????????????????????? | | ?????????????????????????????????????????????????? | | ?????????????????????????????????????????????????? | | ?????????????????????????????????????????????????? | | ?????????????????????????????????????????????????? | | ?????????????????????????????????????????????????? | | ?????????????????????????????????????????????????? | | ?????????????????????????????????????????????????? | | ?????????????????????????????????????????????????? | | ??????????????????????????? ?????????????????????? | | ??????????????????????????? ???????????????????? | | ??????????????????????????? ?????????????????? | | ??????????????????????????# ?????????????????? | | ?????????????????????????? ??????????????????? | | ?????????????????????????# ??????????????????? | | ??????????????????????### ?????##############? | | ?????????????????????## ????##]!## #? | | ?????????????????????? g ?????#"[! # #? | | ?????????????????????? ?????#%= + #? | | ??????????????????????# #?????#!% + #? | | ?????????????????????## ##????#"![ # #? | | ????????????????????## #????##!!## ## | | ????????????????????# # #?????###### ## | | ????????????????????# #??????????### ##### | | ????????????????????# @ ##???????????# #???# | | ??????????????????# ##??????????# #???# | | ?????????????????# k * #??????????# #????# | | ?????????????????#